{"text_format":"1","workbook":"xlsx","n_sheets":13,"sheets":["Tool Guide","Overview","Results","Legislation & Regulations","Organization","Safety","Security","Personnel","Training","Infrastructure","Finance","Materiel Acquisition","Print to PDF"],"not_rendered":{"charts":1,"images":98,"macros":1,"external_links":0,"defined_names":2,"comments":0,"pivot_tables":0},"unopened":[],"bounds":{"document_bytes":16777216,"sheet_cells":100000,"rows_first":2000,"rows_last":500,"rows_between":2000,"halvings":0,"cell_chars":16384,"cell_head_chars":4096},"cells_cut":0,"cells_raw":0,"read":"whole","date_system":"1900"}

{"sheet":"Tool Guide","index":0,"n_rows":92,"n_cols":16,"rows_kept":92,"cut":false,"hidden":false,"merged":[[91,1,91,5],[88,1,88,7],[90,1,90,4],[89,1,89,6],[46,1,46,4],[59,1,59,9],[86,1,86,14],[87,1,87,13]]}
[null,null,null,null,null,null,"  "]
[]
[]
[]
[]
[]
[]
[]
[]
[]
[]
[]
[]
[]
[]
[]
[]
[]
[]
[]
[]
[]
[]
[]
[]
[]
[]
[]
[]
[]
[]
[]
[]
[]
[]
[]
[]
[]
[]
[]
[]
[]
[]
[]
[]
[]
[null,"EU Council Decision (CFSP) 2020/979"]
[]
[]
[]
[]
[]
[]
[]
[]
[]
[]
[]
[]
[null,"https://support.microsoft.com/en-us/office/enable-or-disable-macros-in-microsoft-365-files"]
[]
[]
[]
[]
[]
[]
[]
[]
[]
[]
[]
[]
[]
[]
[]
[]
[]
[]
[]
[]
[]
[]
[]
[]
[]
[]
[null,"https://support.microsoft.com/en-gb/office/enable-or-disable-macros-in-microsoft-365-files-12b036fd-d140-4e74-b45e-16fed1a7e5c6",null,null,null,null,null,null,null,null,null,null,null,null,null,"Link to Microsoft Help Pages"]
[null,"https://support.microsoft.com/en-gb/office/enable-or-disable-activex-settings-in-office-files-f1303e08-a3f8-41c5-a17e-b0b8898743ed",null,null,null,null,null,null,null,null,null,null,null,null,null,"Link to Microsoft Help Pages"]
[null,"YouTube Video on How to Enable Macros and Active Content in Excel",null,null,null,null,null,null,"Step by step guide to turning on active content in Excel"]
[null,"https://eur-lex.europa.eu/eli/dec/2022/2275/oj/eng",null,null,null,null,null,"EU Council Decision CFSP 2022/2275"]
[null,"https://aamvs-amat.gichd.org/",null,null,null,null,null,"GICHD/AMAT link for information on AAMVS"]
[null,"Definition of Small Arms and Light Weapons (SALW)",null,null,null,null,null,"UNODC link on Small Arms and Light Weapons"]

{"sheet":"Overview","index":1,"n_rows":19,"n_cols":3,"rows_kept":19,"cut":false,"hidden":false,"merged":[]}
[]
[]
[]
[]
[null,"End-User:","State here the end-user (i.e. government body such as the military or police) for which the arms/ammunition are required."]
[]
[null,"Date of Completion:","Enter the date when this self-assessment report was fully completed."]
[]
[null,"Assessor(s):","Enter the name(s) and appointment(s) of the person(s) who were authorised to complete this self-assessment."]
[]
[null,"Date of Release:","Enter the date when this self-assessment report was authorised for release to the intended recipients."]
[]
[]
[null,"Releasing Official:","Enter the name and appointment of the person that authorised the release of this self-assessment report to the intended recipients. "]
[]
[null,"Convert to PDF:","Individual tabbed pages may be printed using the functionality present in Excel. By selecting the printer option of 'Microsoft print to PDF' it is possible to save the tab to a PDF file. It is recommended that the print option 'Fit all columns on one page is selected'. Detailed instructions are include in the tab 'Print to PDF'"]
[]
[null,"AAMVS Tool Version 8.0"]
[null," "]

{"sheet":"Results","index":2,"n_rows":17,"n_cols":7,"rows_kept":17,"cut":false,"hidden":false,"merged":[]}
[]
[]
[]
[null,null,null,null,null,"Functional Section","Assessed Level"]
[]
[null,null,null,null,null,"Materiel Acquisition",{"$f":"C17","v":1}]
[null,"Functional Section","Assessed Level",null,null,"Finance",{"$f":"C16","v":1}]
[null,null,null,null,null,"Infrastructure",{"$f":"C15","v":1}]
[null,"Legislation & Regulations",{"$f":"'Legislation & Regulations'!F5","v":1},null,null,"Training",{"$f":"C14","v":1}]
[null,"Organization",{"$f":"Organization!F5","v":1},null,null,"Personnel",{"$f":"C13","v":1}]
[null,"Safety ",{"$f":"Safety!F5","v":1},null,null,"Security",{"$f":"C12","v":1}]
[null,"Security",{"$f":"Security!F5","v":1},null,null,"Safety",{"$f":"C11","v":1}]
[null,"Personnel",{"$f":"Personnel!F5","v":1},null,null,"Organization",{"$f":"C10","v":1}]
[null,"Training",{"$f":"Training!F5","v":1},null,null,"Legislation & Regulations",{"$f":"C9","v":1}]
[null,"Infrastructure",{"$f":"Infrastructure!F5","v":1}]
[null,"Finance",{"$f":"Finance!F5","v":1}]
[null,"Materiel Acquisition ",{"$f":"'Materiel Acquisition'!F5","v":1}]

{"sheet":"Legislation & Regulations","index":3,"n_rows":88,"n_cols":18,"rows_kept":88,"cut":false,"hidden":false,"merged":[[14,1,14,6],[13,8,13,14],[14,8,14,14],[13,1,13,5],[15,1,15,9]]}
[]
[]
[null,"Legislation & Regulations"]
[]
[null,"Calculated Assessed Level:",null,null,null,{"$f":"AVERAGE(R23:R88)","v":1}]
[]
[]
[]
[]
[]
[]
[]
[null,"References:"]
[null,"IATG-01.40 Glossary terms definitions abbreviations",null,null,null,null,null,null,"MOSAIC-03.20 National controls over the international transfer of SALW"]
[null,"IATG 01.50 UN explosive hazard classification system",null,null,null,null,null,null,"MOSAIC-03.40 National coordinating mechanisms"]
[null,"MOSAIC-03.10 National controls over the manufacture of small arms and light weapons"]
[]
[]
[]
[]
[]
[]
[null,null,null,null,null,null,null,null,null,null,null,null,null,null,null,null,null,1]
[]
[]
[]
[]
[]
[]
[]
[]
[]
[]
[]
[]
[]
[]
[]
[null,null,null,null,null,null,null,null,null,null,null,null,null,null,null,null,null,1]
[]
[]
[]
[]
[]
[]
[]
[]
[]
[]
[]
[]
[]
[]
[]
[null,null,null,null,null,null,null,null,null,null,null,null,null,null,null,null,null,1]
[]
[]
[]
[]
[]
[]
[]
[]
[]
[]
[]
[]
[]
[]
[]
[]
[]
[null,null,null,null,null,null,null,null,null,null,null,null,null,null,null,null,null,1]
[]
[]
[]
[]
[]
[]
[]
[]
[]
[]
[]
[]
[]
[]
[null,null,null,null,null,null,null,null,null,null,null,null,null,null,null,null,null,1]

{"sheet":"Organization","index":4,"n_rows":34,"n_cols":18,"rows_kept":34,"cut":false,"hidden":false,"merged":[[14,1,14,4]]}
[]
[]
[null,"Organization"]
[]
[null,"Calculated Assessed Level:",null,null,null,{"$f":"AVERAGE(R22:R34)","v":1}]
[]
[]
[]
[]
[]
[]
[]
[]
[null,"References:"]
[null,"IATG-01.35 Organisational capabilities"]
[]
[]
[]
[]
[]
[]
[null,null,null,null,null,null,null,null,null,null,null,null,null,null,null,null,null,1]
[]
[]
[]
[]
[]
[]
[]
[]
[]
[]
[]
[null,null,null,null,null,null,null,null,null,null,null,null,null,null,null,null,null,1]

{"sheet":"Safety","index":5,"n_rows":102,"n_cols":18,"rows_kept":102,"cut":false,"hidden":false,"merged":[[20,1,20,3],[15,1,15,4],[16,1,16,6],[17,1,17,7],[19,1,19,5],[18,1,18,5],[16,8,16,14],[17,8,17,14],[18,8,18,13],[19,8,19,13],[15,8,15,14]]}
[]
[]
[null,"Safety"]
[]
[null,"Calculated Assessed Level:",null,null,null,{"$f":"AVERAGE(R28:R102)","v":1}]
[]
[]
[]
[]
[]
[]
[]
[]
[]
[null,"References:"]
[null,"IATG-01.30 Policy development advice",null,null,null,null,null,null,"IATG-11.10-Ammunition accidents: reporting and investigation"]
[null,"IATG-01.50 UN explosive hazard classification system",null,null,null,null,null,null,"MOSAIC-03.40 National coordination mechanisms on SALW control"]
[null,"IATG-02.10 Introduction to risk management principles and processes",null,null,null,null,null,null,"MOSAIC-04.40 Monitoring, evaluating and reporting"]
[null,"IATG-02.20 Quantity and separation distances",null,null,null,null,null,null,"MOSAIC-05.40 Collection of illicit and unwanted SALW"]
[null,"IATG-02.30 Licensing of explosive facilities",null,null,null,null,null,null,"MOSAIC-05.50 Destruction: Weapons"]
[null,"IATG-02.50 Fire safety"]
[]
[]
[]
[]
[]
[]
[null,null,null,null,null,null,null,null,null,null,null,null,null,null,null,null,null,1]
[]
[]
[null,null,null,null,null,null,null,null,null,null,null,null,null,null,null,null,null," "]
[]
[]
[]
[]
[]
[]
[null,null,null,null,null,null,null,null,null,null,null,null,null,null,null,null,null,1]
[]
[]
[]
[]
[]
[]
[]
[]
[]
[null,null,null,null,null,null,null,null,null,null,null,null,null,null,null,null,null,1]
[]
[]
[]
[]
[]
[]
[]
[]
[]
[]
[]
[]
[]
[]
[]
[]
[null,null,null,null,null,null,null,null,null,null,null,null,null,null,null,null,null,1]
[]
[]
[]
[]
[]
[]
[]
[null,null,null,null,null,null,null,null,null,null,null,null,null,null,null,null,null,1]
[]
[]
[]
[]
[]
[]
[]
[]
[]
[null,null,null,null,null,null,null,null,null,null,null,null,null,null,null,null,null,1]
[]
[]
[]
[]
[]
[]
[]
[]
[]
[]
[]
[]
[]
[]
[]
[]
[]
[]
[null,null,null,null,null,null,null,null,null,null,null,null,null,null,null,null,null,1]

{"sheet":"Security","index":6,"n_rows":115,"n_cols":18,"rows_kept":115,"cut":false,"hidden":false,"merged":[[15,8,15,12],[14,1,14,4],[15,1,15,5],[14,8,14,12],[16,1,16,5]]}
[]
[]
[null,"Security"]
[]
[null,"Calculated Assessed Level:",null,null,null,{"$f":"AVERAGE(R26:R115)","v":1}]
[]
[]
[]
[]
[]
[]
[]
[]
[null,"References:"]
[null,"IATG-03.10 Inventory management",null,null,null,null,null,null,"MOSAIC-05.20 Stockpile management: Weapons"]
[null,"IATG-09.10 Security principles and systems",null,null,null,null,null,null,"MOSAIC-05.30 Marking and record keeping"]
[null,"MOSAIC-05.10 Conducting SALW surveys"]
[]
[]
[]
[]
[]
[]
[]
[]
[null,null,null,null,null,null,null,null,null,null,null,null,null,null,null,null,null,1]
[]
[]
[]
[]
[]
[]
[]
[]
[]
[]
[]
[]
[]
[]
[]
[]
[]
[]
[null,null,null,null,null,null,null,null,null,null,null,null,null,null,null,null,null,1]
[]
[]
[]
[]
[]
[]
[]
[]
[]
[]
[]
[]
[null,null,null,null,null,null,null,null,null,null,null,null,null,null,null,null,null,1]
[]
[]
[]
[]
[]
[]
[]
[]
[null,null,null,null,null,null,null,null,null,null,null,null,null,null,null,null,null,1]
[]
[]
[]
[]
[]
[]
[]
[]
[]
[]
[]
[null,null,null,null,null,null,null,null,null,null,null,null,null,null,null,null,null,1]
[]
[]
[]
[]
[]
[]
[]
[]
[]
[]
[]
[]
[]
[]
[]
[]
[]
[]
[null,null,null,null,null,null,null,null,null,null,null,null,null,null,null,null,null,1]
[]
[]
[]
[]
[]
[]
[]
[]
[null,null,null,null,null,null,null,null,null,null,null,null,null,null,null,null,null,1]
[]
[]
[]
[]
[]
[]
[]
[null,null,null,null,null,null,null,null,null,null,null,null,null,null,null,null,null,1]

{"sheet":"Personnel","index":7,"n_rows":36,"n_cols":18,"rows_kept":36,"cut":false,"hidden":false,"merged":[[15,1,15,4]]}
[]
[]
[null,"Personnel"]
[]
[null,"Calculated Assessed Level:",null,null,null,{"$f":"AVERAGE(R23:R36)","v":1}]
[]
[]
[]
[]
[]
[]
[]
[]
[]
[null,"References:"]
[null,"IATG-01.90 Personnel competencies"]
[]
[]
[]
[]
[]
[]
[null,null,null,null,null,null,null,null,null,null,null,null,null,null,null,null,null,1]
[]
[]
[]
[]
[]
[]
[]
[]
[]
[]
[]
[]
[null,null,null,null,null,null,null,null,null,null,null,null,null,null,null,null,null,1]

{"sheet":"Training","index":8,"n_rows":38,"n_cols":18,"rows_kept":38,"cut":false,"hidden":false,"merged":[[16,1,16,4]]}
[]
[]
[null,"Training"]
[]
[null,"Calculated Assessed Level:",null,null,null,{"$f":"AVERAGE(R25:R38)","v":1}]
[]
[]
[]
[]
[]
[]
[]
[]
[]
[null,"References:"]
[null,"IATG-01.35 Organisational capabilities"]
[null,"IATG-01.90 Personnel competencies"]
[]
[]
[]
[]
[]
[]
[]
[null,null,null,null,null,null,null,null,null,null,null,null,null,null,null,null,null,1]
[]
[]
[]
[]
[]
[]
[]
[]
[]
[]
[]
[]
[null,null,null,null,null,null,null,null,null,null,null,null,null,null,null,null,null,1]

{"sheet":"Infrastructure","index":9,"n_rows":75,"n_cols":18,"rows_kept":75,"cut":false,"hidden":false,"merged":[[16,1,16,4],[17,8,17,12],[16,8,16,12],[18,1,18,4],[17,1,17,5]]}
[]
[]
[null,"Infrastructure"]
[]
[null,"Calculated Assessed Level:",null,null,null,{"$f":"AVERAGE(R27:R75)","v":1}]
[]
[]
[]
[]
[]
[]
[]
[]
[]
[]
[null,"References:"]
[null,"IATG-05.20 Buildings explosives facilities",null,null,null,null,null,null,"IATG-07.30 Ammunition processing operations"]
[null,"IATG-05.40 Safety standards electrical installations",null,null,null,null,null,null,"MOSAIC-05.20 Stockpile management: weapons"]
[null,"IATG-07.20 Inspection ammunition"]
[]
[]
[]
[]
[]
[]
[]
[null,null,null,null,null,null,null,null,null,null,null,null,null,null,null,null,null,1]
[]
[]
[]
[]
[]
[]
[]
[null,null,null,null,null,null,null,null,null,null,null,null,null,null,null,null,null,1]
[]
[]
[]
[]
[]
[]
[]
[]
[]
[]
[]
[]
[]
[]
[]
[]
[]
[]
[null,null,null,null,null,null,null,null,null,null,null,null,null,null,null,null,null,1]
[]
[]
[]
[]
[]
[]
[]
[]
[]
[]
[null,null,null,null,null,null,null,null,null,null,null,null,null,null,null,null,null,1]
[]
[]
[]
[]
[]
[]
[]
[]
[]
[null,null,null,null,null,null,null,null,null,null,null,null,null,null,null,null,null,1]

{"sheet":"Finance","index":10,"n_rows":35,"n_cols":18,"rows_kept":35,"cut":false,"hidden":false,"merged":[[14,1,14,4],[15,1,15,5]]}
[]
[]
[null,"Finance"]
[]
[null,"Calculated Assessed Level:",null,null,null,{"$f":"AVERAGE(R24:R35)","v":1}]
[]
[]
[]
[]
[]
[]
[]
[]
[null,"References:"]
[null,"IATG-03.10 Inventory management"]
[null,"MOSAIC-05.20 Stockpile management: Weapons"]
[]
[]
[]
[]
[]
[]
[]
[null,null,null,null,null,null,null,null,null,null,null,null,null,null,null,null,null,1]
[]
[]
[]
[]
[]
[]
[]
[]
[]
[]
[null,null,null,null,null,null,null,null,null,null,null,null,null,null,null,null,null,1]

{"sheet":"Materiel Acquisition","index":11,"n_rows":73,"n_cols":18,"rows_kept":73,"cut":false,"hidden":false,"merged":[[19,1,19,4]]}
[]
[]
[null,"Materiel Acquisition"]
[]
[null,"Calculated Assessed Level:",null,null,null,{"$f":"AVERAGE(R27:R73)","v":1}]
[]
[]
[]
[]
[]
[]
[]
[]
[]
[]
[]
[]
[]
[]
[null,"IATG-01.35 Organisational capabilities"]
[]
[]
[]
[]
[]
[]
[null,null,null,null,null,null,null,null,null,null,null,null,null,null,null,null,null,1]
[]
[]
[]
[]
[]
[]
[]
[]
[]
[]
[]
[]
[]
[]
[]
[]
[]
[null,null,null,null,null,null,null,null,null,null,null,null,null,null,null,null,null,1]
[]
[]
[]
[]
[]
[]
[]
[]
[]
[]
[]
[null,null,null,null,null,null," "]
[]
[]
[]
[]
[null,null,null,null,null,null,null,null,null,null,null,null,null,null,null,null,null,1]
[]
[]
[]
[]
[]
[]
[]
[]
[]
[]
[null,null,null,null,null,null,null,null,null,null,null,null,null,null,null,null,null,1]

{"sheet":"Print to PDF","index":12,"n_rows":54,"n_cols":17,"rows_kept":54,"cut":false,"hidden":false,"merged":[]}
[]
[]
[null,"Guide for Creating PDF Copies of Tool Pages"]
[]
[]
[]
[]
[]
[]
[]
[]
[]
[]
[]
[]
[]
[]
[]
[]
[]
[]
[]
[null,null,null,null,null,null,null,null,null,null,null,null,null,null,null,null,{"$error":"#VALUE!"}]
[]
[]
[]
[]
[]
[]
[]
[]
[]
[]
[]
[]
[]
[]
[]
[]
[]
[]
[]
[]
[]
[]
[]
[]
[]
[]
[]
[]
[]
[]
[null,null,null,null,null,null," "]